bitfinex-derivatives/quotes_ETHF0:USTF0_20260204
["timestamp","ask_amount","ask_price","bid_price","bid_amount"]
[1770212793744,3.43340655,2214.1,2212.6,7.63066797]
[1770212794243,3.65957655,2214.1,2212.6,7.63066797]
[1770212795944,3.34403059,2213.9,2212.6,7.63066797]
[1770212796142,3.57022059,2213.9,2212.6,7.63066797]
[1770212796541,2.60446982,2213.5,2212.4,0.00583674]
[1770212796742,2.60446982,2213.3,2212.0,7.63066797]
[1770212796936,0.045,2213.2,2212.0,7.63066797]
[1770212797141,0.045,2213.2,2212.2,7.63066797]
[1770212797647,0.045,2213.2,2212.5,7.63066797]
[1770212798637,0.045,2213.2,2212.7,7.63066797]
[1770212799345,0.045,2213.2,2212.9,7.63066797]
[1770212799546,0.045,2213.2,2212.3,7.63066797]
[1770212800045,0.045,2213.2,2212.5,7.63066797]
[1770212800348,1.88662732,2213.2,2212.2,7.63385264]
[1770212800646,1.66036732,2213.2,2212.2,0.00318467]
[1770212800849,0.22631,2212.8,2211.8,7.63066797]
[1770212801349,0.22631,2212.8,2212.0,7.63066797]
[1770212801748,0.22631,2212.8,2212.0,7.63461753]
[1770212801948,0.22631,2212.7,2211.7,7.63066797]
[1770212802148,0.22632,2212.6,2211.7,7.63066797]
[1770212802547,1.61536732,2212.7,2211.1,7.63066797]
[1770212802748,0.22636,2212.3,2211.1,7.63066797]
[1770212802948,0.00382887,2212.3,2211.1,7.86172467]
[1770212803146,0.00382887,2212.3,2211.5,7.63066797]
[1770212803553,1.5590111,2212.1,2211.1,0.0045767]
[1770212803846,0.22639,2212.0,2211.1,7.63524467]
[1770212804753,0.045,2212.2,2211.1,7.63524467]
[1770212805756,1.523679,2212.1,2211.1,0.0045767]
[1770212806061,1.08631,2212.2,2210.7,7.63066797]
[1770212806062,0.22643,2211.6,2210.7,7.63066797]
[1770212806452,1.7904723,2212.2,2210.7,7.63066797]
[1770212806656,0.27137,2212.2,2210.7,7.63066797]
[1770212806855,0.27137,2212.2,2210.7,7.63440817]
[1770212807059,0.27137,2212.2,2210.9,7.63066797]
[1770212807254,0.045,2212.2,2211.1,7.63066797]
[1770212807664,0.045,2212.2,2211.1,7.85713797]
[1770212808662,0.045,2212.2,2211.1,7.63066797]
[1770212809159,0.2264,2211.9,2211.1,7.63066797]
[1770212809862,0.22642,2211.7,2211.1,7.63066797]
[1770212810560,2.6147707,2212.1,2211.1,7.63066797]
[1770212810765,0.27137,2212.2,2211.1,7.63066797]
[1770212811065,0.045,2212.2,2211.1,7.63066797]
[1770212811565,0.045,2212.2,2211.3,7.63066797]
[1770212812359,2.65933758,2212.8,2211.5,7.63066797]
[1770212812566,3.76620088,2212.7,2211.5,7.63066797]
[1770212812762,0.045,2212.8,2211.5,7.63066797]
[1770212812959,3.76741307,2212.7,2211.5,7.63066797]
[1770212813264,0.045,2212.8,2211.5,7.63066797]
[1770212813566,3.76827211,2212.7,2211.5,7.63066797]
[1770212813766,0.00485434,2212.8,2211.8,7.33618502]
[1770212816860,0.045,2213.1,2211.8,7.33618502]
[1770212817062,2.61433758,2213.6,2211.8,7.33618502]
[1770212817266,38.57119054,2213.7,2211.8,7.33618502]
[1770212817466,3.76903295,2213.6,2211.8,7.33618502]
[1770212817668,2.65933758,2213.8,2211.8,7.33618502]
[1770212817965,3.76816143,2213.7,2211.8,7.33618502]
[1770212818169,3.76816143,2213.6,2211.8,7.33618502]
[1770212818471,2.66253481,2213.8,2211.8,7.33618502]
[1770212818669,3.76726276,2213.7,2211.8,7.33618502]
[1770212818867,3.76726276,2213.6,2211.8,7.33618502]
[1770212819063,2.66324226,2213.8,2211.8,7.33618502]
[1770212819268,0.04819723,2213.8,2211.8,7.33618502]
[1770212819468,3.76657292,2213.7,2211.8,7.33618502]
[1770212819669,3.76664587,2213.6,2211.8,7.33618502]
[1770212819872,0.04819723,2213.8,2211.8,7.33618502]
[1770212820069,3.76681683,2213.7,2211.8,7.33618502]
[1770212820269,5.71388707,2213.6,2211.8,7.33618502]
[1770212820471,5.71388707,2213.5,2211.8,7.33618502]
[1770212820771,2.61504503,2213.2,2211.8,7.33618502]
[1770212820968,3.76681683,2213.1,2211.8,7.33618502]
[1770212821363,4.56211527,2213.0,2211.8,7.33618502]
[1770212821568,3.76681683,2212.9,2211.8,7.33618502]
[1770212821764,0.045,2213.0,2211.8,7.33618502]
[1770212823170,2.61504503,2213.3,2211.8,7.33618502]
[1770212823670,2.61504503,2213.5,2211.8,7.33618502]
[1770212824172,0.045,2213.6,2212.0,7.60008014]
[1770212829070,0.00319723,2213.8,2212.0,7.60008014]
[1770212829272,2.61504503,2214.5,2212.3,7.60008014]
[1770212829466,1.71105407,2214.6,2212.5,5.38839227]
[1770212829668,4.3260991,2214.6,2212.5,7.60008014]
[1770212829871,3.76798628,2214.5,2212.5,7.60008014]
[1770212830271,0.00337234,2214.5,2212.5,7.60583957]
[1770212831973,4.22355163,2214.5,2212.5,7.60583957]
[1770212832376,0.00337234,2214.5,2212.5,7.60583957]
[1770212833678,0.00337234,2214.5,2212.9,7.60008014]
[1770212834080,0.045,2214.6,2212.9,7.60008014]
[1770212835082,0.04987837,2214.6,2212.9,7.60008014]
[1770212835278,1.43711095,2215.5,2213.0,7.60008014]
[1770212835475,1.43711095,2215.5,2213.1,7.60008014]
[1770212835476,0.045,2215.5,2213.1,7.60008014]
[1770212835678,1.43711095,2215.5,2213.1,7.60008014]
[1770212835878,1.39211095,2215.3,2213.1,7.60008014]
[1770212836078,1.39211095,2215.2,2213.1,7.60008014]
[1770212836284,1.39611567,2215.2,2213.1,7.60008014]
[1770212836483,4.0111607,2215.2,2213.1,7.60008014]
[1770212836681,1.43390263,2215.0,2213.1,7.60008014]
[1770212836878,4.04894766,2214.9,2213.1,7.60008014]
[1770212837079,4.04894766,2214.3,2212.6,7.60008014]
[1770212837279,1.43390263,2214.1,2212.6,7.60008014]
[1770212837783,0.045,2214.2,2212.9,7.60008014]
[1770212838786,1.48446468,2214.0,2212.9,7.60008014]
[1770212839180,0.22617,2214.1,2212.9,7.60008014]
[1770212839380,2.84121503,2214.1,2212.9,7.60008014]
[1770212839983,0.22617,2214.1,2212.9,7.60008014]
[1770212840184,2.84121503,2214.1,2212.9,7.60008014]
[1770212840883,1.4072496,2214.0,2212.6,7.60008014]
[1770212841087,1.4072496,2214.0,2212.5,0.00575943]
[1770212841088,4.02229463,2213.4,2212.5,0.00575943]
[1770212841292,0.045,2213.3,2212.5,7.60583957]
[1770212842685,0.00417628,2213.4,2212.5,7.60583957]
[1770212844693,0.23041628,2213.4,2212.5,7.60583957]
[1770212844886,4.8603708,2213.4,2211.9,0.9042]
[1770212845092,3.74314931,2213.3,2211.9,0.9042]
[1770212845390,3.74314931,2213.3,2212.1,0.22637]
[1770212845591,0.00417628,2213.4,2212.1,0.22637]
[1770212845790,0.00417628,2213.4,2212.1,0.23014753]
[1770212846792,0.00417628,2213.4,2212.2,7.55322384]
[1770212846987,0.22631,2212.7,2212.1,0.00377753]
[1770212847188,0.045,2212.6,2211.6,7.55322384]
[1770212848292,0.045,2212.6,2211.6,7.55875002]
[1770212848890,0.27133,2212.6,2211.7,0.8515]
[1770212851585,0.045,2212.6,2211.7,0.8515]
[1770212851791,0.045,2212.6,2211.7,8.40472384]
[1770212853995,2.61504503,2213.1,2212.0,7.55322384]
[1770212854193,2.61504503,2213.3,2212.0,7.55322384]
[1770212854397,3.7324854,2213.2,2212.0,7.55322384]
[1770212854697,0.045,2213.3,2212.0,7.55322384]
[1770212855095,2.66004503,2213.3,2212.0,7.55322384]
[1770212855294,0.045,2213.3,2212.0,7.55322384]
[1770212855896,2.70299904,2213.1,2212.0,7.55322384]
[1770212856499,0.045,2213.3,2212.2,7.55322384]
[1770212857498,5.55742204,2213.2,2212.2,7.55322384]
[1770212857698,1.84255345,2213.2,2212.2,7.55322384]
[1770212859097,0.27125,2213.3,2212.2,7.55322384]
[1770212859700,0.045,2213.3,2212.2,7.55322384]
[1770212860401,3.71497709,2213.2,2212.2,7.55322384]
[1770212860697,1.83950961,2213.3,2212.2,7.55322384]
[1770212860698,2.70299904,2213.0,2212.2,7.55322384]
[1770212861202,6.64353359,2212.9,2211.8,7.55322384]
[1770212861400,3.71423455,2212.8,2211.8,7.55322384]
[1770212861600,2.92929904,2212.9,2211.8,7.55322384]
[1770212861898,3.71417637,2212.8,2211.8,7.55322384]
[1770212862093,2.92929904,2212.9,2211.8,7.55322384]
[1770212862094,2.70299904,2212.9,2211.8,7.55322384]
[1770212862301,3.71391433,2212.8,2211.8,7.55322384]
[1770212862500,5.36304407,2213.3,2211.8,7.77962384]
[1770212862799,3.71360792,2213.2,2211.8,7.77962384]
[1770212863098,3.71360792,2213.1,2211.8,7.77962384]
[1770212863294,2.70299904,2212.9,2211.8,7.55322384]
[1770212864300,3.71851081,2212.8,2211.8,7.55322384]
[1770212864496,5.58774171,2212.7,2211.8,7.55322384]
[1770212864700,3.71851081,2212.6,2211.8,7.55322384]
[1770212865396,6.42150985,2212.5,2211.7,8.40472384]
[1770212865598,2.70299904,2212.5,2211.7,8.40472384]
[1770212866196,3.72700685,2212.4,2211.7,8.40472384]
[1770212866402,5.54438407,2212.5,2211.7,8.40472384]
[1770212866603,3.72685567,2212.4,2211.7,8.40472384]
[1770212866800,5.54438407,2212.5,2211.7,8.40472384]
[1770212867101,3.72686171,2212.4,2211.7,8.40472384]
[1770212867298,3.95321171,2212.3,2211.4,7.55322384]
[1770212867504,3.72686171,2212.2,2211.4,7.55322384]
[1770212868101,6.65624075,2212.1,2211.4,7.55322384]
[1770212868400,3.72792347,2212.0,2211.4,7.51382316]
[1770212868600,2.92937904,2212.1,2211.5,0.0516]
[1770212868798,4.46857928,2211.7,2210.3,0.45241704]
[1770212869001,2.70299904,2211.2,2209.4,5.61503227]
[1770212869202,2.70299904,2210.4,2208.8,0.22671]
[1770212869402,3.718665,2210.3,2208.8,0.22671]
[1770212869602,2.70299904,2210.4,2208.9,0.2267]
[1770212869804,2.70699806,2210.4,2208.9,0.22990889]
[1770212870204,2.70699806,2210.4,2209.0,7.55322384]
[1770212870403,0.00399902,2210.4,2209.0,7.55322384]
[1770212870699,0.00399902,2210.4,2209.3,7.55322384]
[1770212871002,0.045,2211.1,2209.5,0.22664]
[1770212871206,0.045,2211.1,2209.6,7.55322384]
[1770212871399,0.045,2211.1,2209.6,7.77985384]
[1770212871904,0.04948233,2211.1,2209.6,7.77985384]
[1770212872205,0.04948233,2211.1,2209.6,7.55322384]
[1770212872407,40.84948233,2211.1,2209.6,7.55322384]
[1770212872701,1.76109417,2210.9,2209.6,7.55322384]
[1770212872905,0.22652,2210.7,2209.6,7.55322384]
[1770212873602,2.09382237,2211.1,2209.6,7.55322384]
[1770212873905,5.95154373,2211.0,2209.6,7.55322384]
[1770212874103,2.04434004,2210.8,2209.6,7.55322384]
[1770212874307,2.27087004,2210.7,2209.6,7.55322384]
[1770212875098,0.22653,2210.6,2209.6,7.55322384]
[1770212875304,2.04434004,2210.3,2209.0,7.48264809]
[1770212875502,0.045,2210.2,2209.0,7.48264809]
[1770212875704,0.22658,2210.1,2209.0,7.48264809]
[1770212877905,2.18913609,2210.0,2209.0,7.48264809]
[1770212878108,0.2266,2209.9,2209.0,7.48264809]
[1770212878305,2.18915609,2209.8,2208.9,0.00320889]
[1770212879008,0.22661,2209.8,2208.9,7.03420283]
[1770212880107,1.04247,2209.7,2208.6,7.03099394]
[1770212880307,1.94535496,2208.9,2206.8,0.22691]
[1770212880508,3.61014156,2209.0,2206.9,7.03099394]
[1770212880509,0.22674,2208.6,2206.9,7.03099394]
[1770212880809,5.78224652,2208.5,2206.9,7.03099394]
[1770212881005,0.045,2208.8,2206.9,8.07477394]
[1770212881204,0.04855384,2208.8,2207.1,7.03099394]
[1770212881405,0.22674,2208.6,2207.1,7.03099394]
[1770212881606,2.17209496,2208.6,2207.1,7.03099394]
[1770212882010,2.17210496,2208.5,2207.1,7.03099394]
[1770212883104,2.17210496,2208.5,2206.9,0.00399902]
[1770212883105,2.28983344,2207.8,2206.9,0.00399902]
[1770212883308,0.22684,2207.6,2206.5,7.04691254]
[1770212883905,3.61014156,2207.5,2206.5,7.04691254]
[1770212884105,0.22677,2208.3,2206.5,7.04691254]
[1770212884312,0.27177,2208.3,2206.7,7.05194852]
[1770212884711,0.045,2208.3,2206.7,7.27887852]
[1770212884911,0.00355384,2208.8,2207.3,7.05194852]
[1770212885210,0.04855384,2208.8,2207.3,7.05194852]
[1770212886607,3.61014156,2208.7,2207.3,7.05194852]
[1770212886907,3.61014156,2208.2,2207.3,7.05194852]
[1770212887108,4.85540067,2208.7,2207.3,7.05194852]
[1770212888316,1.43843061,2208.4,2207.3,7.05194852]
[1770212888514,1.66519061,2208.4,2207.3,7.05194852]
[1770212888715,0.2268,2208.0,2206.8,7.03099394]
[1770212888913,0.045,2207.9,2206.8,7.03099394]
[1770212891212,1.3929565,2207.7,2206.5,0.00318683]
[1770212891411,7.04408435,2207.0,2203.2,5.30953565]
[1770212891611,1.0456,2203.1,2201.2,5.31227375]
[1770212891812,3.61014156,2202.8,2200.3,1.04691]
[1770212892115,44.41014156,2203.3,2201.5,1.04633]
[1770212892318,0.00466621,2203.3,2201.5,0.00590082]
[1770212892522,2.73093098,2203.3,2201.6,12.62380172]
[1770212893018,0.03111915,2203.1,2201.6,12.62380172]
[1770212893416,2.72626477,2203.2,2201.7,7.65458468]
[1770212893617,0.00466621,2203.3,2201.7,7.65458468]
[1770212893817,0.00466621,2203.3,2201.5,0.00590082]
[1770212893818,40.8,2203.8,2202.5,7.65458468]
[1770212894117,40.8,2203.8,2202.7,7.65458468]
[1770212894314,0.045,2203.9,2202.9,7.37999407]
[1770212894513,0.045,2205.0,2202.9,7.37999407]
[1770212894812,40.8,2204.9,2203.1,7.37999407]
[1770212895016,40.8,2204.9,2203.1,7.38430539]
[1770212895212,40.8,2204.9,2203.3,7.37999407]
[1770212895716,40.8,2204.9,2203.5,7.37999407]
[1770212895717,44.43194424,2204.9,2203.5,7.37999407]
[1770212896109,1.04501,2204.4,2203.6,12.61913551]
[1770212896310,44.43194424,2204.9,2203.6,7.24883903]
[1770212896512,0.27204,2205.7,2203.8,7.24883903]
[1770212896714,0.045,2205.7,2203.8,7.24883903]
[1770212896911,40.845,2205.7,2204.0,7.24883903]
[1770212897116,0.045,2205.7,2204.0,7.24883903]
[1770212897412,0.045,2205.7,2204.2,7.24883903]
[1770212897617,44.48148578,2205.7,2204.2,7.24883903]
[1770212897919,1.04441,2205.6,2204.4,7.24883903]
[1770212898314,1.04441,2205.6,2204.5,12.56893148]
[1770212898619,1.04441,2205.6,2204.4,7.24883903]
[1770212898825,44.48148578,2205.7,2204.4,7.24883903]
[1770212899313,3.68148578,2205.7,2204.4,7.24883903]
[1770212899519,1.04441,2205.6,2204.4,7.24883903]
[1770212899715,1.04452,2205.4,2204.4,7.24883903]
[1770212900017,1.0447,2205.0,2203.2,0.045]
[1770212900218,7.04408435,2205.1,2203.2,0.045]
[1770212900814,8.08878435,2205.0,2203.2,0.045]
[1770212901020,0.2271,2205.1,2203.2,0.045]
[1770212901416,1.04475,2204.9,2203.2,0.045]
[1770212901620,0.045,2204.8,2203.2,0.045]
[1770212901918,0.045,2204.8,2203.3,7.03099394]
[1770212902516,8.60713016,2202.5,2200.9,7.03099394]
[1770212902716,8.60713016,2202.5,2199.3,1.04737]
[1770212902717,3.85938424,2201.8,2200.2,3.63194424]
[1770212902918,3.63194424,2202.3,2200.2,3.63194424]
[1770212903115,0.045,2202.4,2200.3,1.55317243]
[1770212903321,10.67602859,2202.8,2200.7,0.22754]
[1770212903522,7.27148435,2202.2,2200.4,3.63194424]
[1770212903717,7.31648435,2202.2,2200.4,3.63194424]
[1770212904213,7.31648435,2202.2,2200.5,1.49125371]
[1770212904617,7.31648435,2202.2,2200.6,3.63194424]
[1770212904821,7.31648435,2202.2,2200.3,0.00408218]
[1770212904822,7.31648435,2202.2,2200.5,7.05890139]
[1770212905123,6.94450813,2201.8,2200.5,7.05890139]
[1770212905321,1.0468,2200.6,2200.1,9.74192051]
[1770212905515,7.17209813,2200.3,2198.4,7.05890139]
[1770212905721,3.67694424,2200.5,2199.2,7.05890139]
[1770212906015,0.045,2200.5,2199.7,7.06298357]
[1770212906216,6.94450813,2200.3,2198.9,7.05890139]
[1770212906416,0.00391051,2200.3,2199.5,7.05890139]
[1770212906623,0.00391051,2200.3,2199.6,7.06298357]
[1770212906916,0.22747,2201.5,2199.9,7.05890139]
[1770212906917,6.94450813,2201.5,2199.9,7.05890139]
[1770212907119,6.94450813,2201.5,2200.1,7.05890139]
[1770212907320,7.99097813,2201.3,2199.8,7.05890139]
[1770212907522,7.17199813,2201.3,2199.8,7.05890139]
[1770212907718,7.17199813,2201.3,2200.2,0.0047]
[1770212907918,7.1754662,2201.3,2200.2,0.0047]
[1770212908116,7.1754662,2201.3,2200.3,3.62803373]
[1770212908515,6.9479762,2201.3,2200.3,3.62803373]
[1770212909220,7.1754662,2201.3,2200.3,3.62803373]
[1770212909424,6.9479762,2201.3,2200.3,3.62803373]
[1770212909619,6.9479762,2201.3,2200.2,0.0047]
[1770212909620,8.2219462,2201.3,2200.2,0.0047]
[1770212909820,8.21856813,2201.1,2200.2,0.0047]
[1770212910018,7.99134813,2200.5,2199.2,7.05890139]
[1770212910221,7.17208813,2200.4,2199.2,10.68693512]
[1770212910423,6.94450813,2200.0,2198.9,0.00515179]
[1770212910618,0.045,2200.0,2198.9,3.62803373]
[1770212910820,0.045,2200.0,2199.0,7.06298357]
[1770212911126,6.98950813,2200.0,2198.9,3.62803373]
[1770212911327,6.98950813,2200.0,2198.9,3.63211591]
[1770212911629,6.98950813,2200.0,2198.9,3.63749807]
[1770212912029,0.045,2200.0,2199.3,0.00408218]
[1770212912220,0.045,2200.0,2198.9,10.69231728]
[1770212912425,0.045,2200.0,2199.0,7.05890139]
[1770212912827,0.045,2200.0,2199.1,3.62803373]
[1770212913027,0.045,2200.0,2198.3,7.51378801]
[1770212913321,0.045,2200.0,2198.5,7.28667139]
[1770212913525,6.98950813,2200.0,2198.5,7.05890139]
[1770212913925,0.045,2200.0,2198.7,7.28665139]
[1770212914222,0.045,2200.0,2198.7,7.05890139]
[1770212915025,0.22755,2200.7,2198.9,7.05890139]
[1770212915224,0.22755,2200.7,2199.0,7.05890139]
[1770212915628,0.22755,2200.7,2199.0,7.91350139]
[1770212915929,6.94450813,2200.9,2199.2,7.05890139]
[1770212916130,0.045,2201.0,2199.4,7.05890139]
[1770212916330,0.045,2201.0,2199.4,7.10390139]
[1770212916631,6.9479762,2201.3,2199.6,7.05890139]
[1770212917434,0.00346807,2201.3,2199.7,7.10390139]
[1770212917831,0.00346807,2201.3,2200.0,0.22762]
[1770212918032,0.00346807,2201.3,2200.1,7.05890139]
[1770212918235,0.22743,2201.9,2200.1,7.28879921]
[1770212918439,7.17193813,2201.9,2200.3,7.05890139]
[1770212919342,0.22749,2201.3,2200.3,7.05890139]
[1770212919638,0.22752,2201.0,2200.1,0.00228782]
[1770212920944,7.17202813,2201.0,2200.1,0.00228782]
[1770212921145,7.17202813,2201.0,2200.1,1e-08]
[1770212921540,0.22752,2201.0,2200.1,1e-08]
[1770212924134,6.94450813,2201.0,2200.1,1e-08]
[1770212924339,0.22755,2200.7,2200.1,1e-08]
[1770212924639,0.2725,2201.2,2200.1,7.0589014]
[1770212924839,0.22746,2201.6,2200.1,7.0589014]
[1770212925038,7.17197813,2201.5,2200.1,7.0589014]
[1770212925238,0.2275,2201.2,2200.1,7.0589014]
[1770212925432,0.22751,2201.1,2200.1,7.0589014]
[1770212925637,7.17201813,2201.1,2200.1,7.0589014]
[1770212925837,0.22753,2200.9,2200.1,7.0589014]
[1770212926141,0.22753,2200.9,2200.1,1e-08]
[1770212926336,0.22755,2200.7,2200.1,1e-08]
[1770212927836,0.2275,2201.2,2200.1,1e-08]
[1770212928143,6.94450813,2201.3,2200.1,1e-08]
[1770212928440,2.51888849,2201.3,2200.1,1e-08]
[1770212928643,4.56321057,2201.2,2200.1,1e-08]
[1770212928940,11.5077187,2201.2,2200.1,1e-08]
[1770212929140,0.22755,2200.7,2200.1,1e-08]
[1770212929539,9.46339662,2201.1,2200.1,1e-08]
[1770212929845,4.80269581,2201.0,2200.1,1e-08]
[1770212930142,4.57517581,2200.9,2200.1,1e-08]
[1770212930445,4.57517581,2200.8,2200.1,1e-08]
[1770212930637,4.57517581,2200.7,2200.1,1e-08]
[1770212930836,2.74638849,2201.2,2200.1,1e-08]
[1770212931038,4.58746077,2201.1,2200.1,1e-08]
[1770212931342,2.74643849,2200.7,2200.1,1e-08]
[1770212931542,4.58746077,2200.6,2199.7,7.05890139]
[1770212931739,0.22759,2200.3,2199.1,7.05890139]
[1770212931936,4.5722205,2200.2,2199.1,7.05890139]
[1770212932134,0.22759,2200.3,2199.1,7.05890139]
[1770212932334,7.11065546,2200.2,2199.1,7.05890139]
[1770212932538,0.22762,2200.0,2199.1,7.06236947]
[1770212932741,7.11065546,2199.9,2199.1,7.06236947]
[1770212932942,4.59176697,2199.8,2199.1,7.06236947]
[1770212933144,2.51888849,2200.1,2199.1,7.06236947]
[1770212933341,2.51888849,2200.0,2199.1,7.06236947]
[1770212933543,2.51888849,2200.1,2199.1,7.06236947]
[1770212933941,2.51888849,2200.0,2199.1,7.06236947]
[1770212934138,2.51888849,2199.9,2199.1,7.06236947]
[1770212934343,2.51888849,2199.7,2199.1,0.00346808]
[1770212935045,7.6543196,2199.4,2199.0,0.8546]
[1770212935240,10.17320809,2199.4,2198.4,7.47896589]
[1770212935441,2.51888849,2199.4,2198.4,7.47896589]
[1770212936344,2.51888849,2199.4,2198.5,0.9097]
[1770212936544,2.51888849,2199.4,2198.5,8.38866589]
[1770212937346,2.51888849,2199.5,2198.5,8.38866589]
[1770212937547,2.51888849,2199.4,2198.5,8.38866589]
[1770212938248,2.51888849,2199.5,2198.5,8.38866589]
[1770212938444,2.51888849,2199.4,2198.5,8.38866589]
[1770212938745,7.5037108,2198.8,2197.5,7.04156881]
[1770212938950,2.51888849,2198.4,2197.3,7.04156881]
[1770212939145,2.51888849,2199.1,2197.8,7.26940881]
[1770212939345,2.51888849,2199.6,2198.6,7.04156881]
[1770212939544,2.51888849,2200.0,2198.6,7.04156881]
[1770212939745,2.51888849,2200.1,2199.0,7.04156881]
[1770212939944,2.51888849,2200.0,2199.0,7.04156881]
[1770212940147,2.52388401,2200.0,2199.0,7.04550063]
[1770212940346,38.12411574,2200.6,2199.6,7.04156881]
[1770212940641,45.62782654,2199.9,2199.0,0.00393182]
[1770212940851,38.12411574,2199.9,2199.0,7.04550063]
[1770212941045,38.12411574,2200.1,2199.0,7.04550063]
[1770212941241,38.12411574,2200.3,2199.0,7.04550063]
[1770212941444,0.00342957,2200.1,2199.0,7.04550063]
[1770212941849,0.45,2200.4,2199.4,7.04156881]
[1770212942150,38.12411574,2201.3,2199.8,7.04156881]
[1770212942446,38.12411574,2201.4,2199.8,7.08656881]
[1770212942643,38.16911574,2201.7,2200.2,7.04156881]
[1770212942845,0.05056241,2201.7,2200.2,7.26915881]
[1770212943044,0.05056241,2201.7,2200.4,7.04156881]
[1770212944549,7.55427321,2201.7,2200.4,7.04156881]
[1770212944843,0.05056241,2201.7,2200.4,7.04156881]
[1770212945049,4.32503015,2201.6,2200.4,7.04156881]
[1770212945249,0.05056241,2201.7,2200.4,7.04156881]
[1770212945451,4.32421774,2201.6,2200.4,7.04156881]
[1770212945645,0.05056241,2201.7,2200.4,7.04156881]
[1770212945846,4.32444761,2201.6,2200.4,7.04156881]
[1770212946142,0.05056241,2201.7,2200.4,7.04156881]
[1770212946447,0.00556241,2201.7,2200.6,7.04156881]
[1770212946646,0.00556241,2201.7,2200.6,7.04584808]
[1770212946854,10.03315722,2201.7,2200.6,0.00427927]
[1770212947049,10.03315722,2201.7,2200.3,7.04156881]
[1770212947050,45.85529654,2201.5,2200.3,7.04156881]
[1770212947251,2.52388401,2201.1,2200.3,7.04156881]
[1770212947543,2.52388401,2201.4,2200.3,7.04156881]
[1770212947748,4.32206392,2201.3,2200.3,7.04156881]
[1770212947951,7.50927321,2201.7,2200.3,7.04537752]
[1770212948142,6.846404,2201.6,2200.3,7.04537752]
[1770212948342,4.32251999,2201.5,2200.3,7.04537752]
[1770212948546,2.52388401,2201.5,2200.3,7.04537752]
[1770212948747,4.32209414,2201.4,2200.3,7.04537752]
[1770212948943,4.32158274,2201.3,2200.3,7.04537752]
[1770212949144,2.52388401,2201.5,2200.3,7.04537752]
[1770212949348,4.30674205,2201.4,2200.3,7.04537752]
[1770212949550,4.30674205,2201.3,2200.3,7.04537752]
[1770212949744,2.52388401,2201.3,2200.3,7.04537752]
[1770212949948,7.5037108,2201.5,2200.3,7.04537752]
[1770212950149,4.30582711,2201.4,2200.3,7.04537752]
[1770212950353,6.82971112,2201.3,2200.3,7.04537752]
[1770212950554,4.30582711,2201.2,2200.3,7.04537752]
[1770212950853,7.5037108,2201.5,2200.3,7.04537752]
[1770212951151,4.30561345,2201.4,2200.3,7.04537752]
[1770212951346,10.02759481,2201.5,2200.3,7.04537752]
[1770212951550,0.00556241,2201.7,2200.3,7.04537752]
[1770212951850,4.30495546,2201.6,2200.5,7.26913881]
[1770212952047,0.00556241,2201.7,2200.5,7.26913881]
[1770212952847,7.50927321,2201.7,2200.5,7.04156881]
[1770212953048,6.82790975,2201.6,2200.5,7.04156881]
[1770212953244,0.00556241,2201.7,2200.5,7.04156881]
[1770212953753,14.33104015,2201.6,2200.5,7.04156881]
[1770212953953,2.52388401,2201.4,2200.5,7.04156881]
[1770212954153,2.52388401,2201.3,2200.3,7.04537752]
[1770212954348,2.52388401,2201.2,2200.3,7.04537752]
[1770212954751,2.52388401,2201.1,2200.3,7.04537752]
[1770212955048,2.52388401,2201.2,2200.3,7.04537752]
[1770212955353,2.52388401,2201.3,2200.3,7.04537752]
[1770212955755,0.00556241,2201.7,2200.5,7.04156881]
[1770212956048,0.00556241,2201.7,2200.7,7.04156881]
[1770212956851,2.52388401,2201.6,2200.7,7.04156881]
[1770212957056,2.52388401,2201.4,2200.7,7.04156881]
[1770212957351,0.00556241,2201.7,2200.7,7.04156881]
[1770212958256,7.50927321,2201.7,2200.8,7.94946881]
[1770212958452,2.52388401,2201.6,2200.8,7.94946881]
[1770212958752,7.50927321,2201.7,2200.8,7.94946881]
[1770212958952,7.5037108,2201.1,2200.8,0.4579]
[1770212959249,2.52388401,2200.9,2200.3,0.00380871]
[1770212959747,2.52388401,2200.8,2200.3,0.00380871]
[1770212959954,2.52388401,2200.9,2200.3,0.00380871]
[1770212960149,7.5037108,2201.1,2200.3,0.00380871]
[1770212960353,2.52388401,2200.5,2200.3,0.00380871]
[1770212960547,7.5037108,2200.3,2199.3,0.045]
[1770212960749,7.5037108,2199.9,2198.5,0.045]
[1770212960951,7.5037108,2199.7,2198.5,7.08656881]
[1770212961156,9.98259481,2199.5,2198.5,7.04156881]
[1770212961451,0.00590014,2199.5,2198.5,7.0464736]
[1770212961851,7.50961094,2199.5,2198.5,7.0464736]
[1770212962051,0.00590014,2199.5,2198.5,7.0464736]
[1770212962353,2.48478415,2199.5,2198.5,7.0464736]
[1770212962653,0.00590014,2199.5,2198.5,7.0464736]
[1770212963053,7.5037108,2200.3,2198.5,7.2742436]
[1770212963256,7.5037108,2200.3,2198.9,7.04156881]
[1770212963463,0.045,2200.7,2199.1,7.04156881]
[1770212963759,0.045,2200.7,2199.3,7.26925881]
[1770212964152,2.47888401,2200.6,2199.3,7.04156881]
[1770212964358,2.47888401,2200.3,2199.3,7.04156881]
[1770212964860,2.47888401,2200.0,2199.3,7.04156881]
[1770212965056,9.91485506,2200.2,2199.3,7.04156881]
[1770212965252,38.12839744,2200.7,2199.3,7.04156881]
[1770212965450,0.0042817,2200.7,2199.6,7.20005025]
[1770212965651,0.0042817,2200.7,2199.4,1.83201569]
[1770212965652,7.44025275,2200.7,2199.1,7.20005025]
[1770212966058,7.44025275,2200.7,2199.0,0.22772]
[1770212966059,0.0042817,2200.7,2199.5,7.20005025]
[1770212968658,0.0042817,2200.7,2199.7,7.20005025]
[1770212969263,7.44025275,2200.7,2199.7,7.20005025]
[1770212969462,7.44025275,2200.7,2199.2,7.20005025]
[1770212969660,11.66900531,2200.6,2199.2,7.20005025]
[1770212969857,0.0042817,2200.7,2199.4,7.20005025]
[1770212970059,38.12411574,2201.3,2200.1,7.20005025]
[1770212970258,0.045,2201.5,2200.1,7.20005025]
[1770212970458,4.23537669,2201.4,2200.3,7.20005025]
[1770212970662,0.045,2201.5,2200.3,7.20005025]
[1770212971162,0.05085004,2201.5,2200.3,7.20583426]
[1770212972256,7.48682109,2201.5,2200.3,7.20583426]
[1770212972860,7.43597105,2201.3,2200.3,0.00578401]
[1770212973065,7.43597105,2200.9,2199.3,7.20005025]
[1770212973358,5.03359015,2201.2,2200.0,7.20005025]
[1770212973563,7.43597105,2201.3,2200.0,7.20005025]
[1770212973760,49.20254614,2201.7,2200.2,7.20005025]
[1770212973965,11.62734198,2201.4,2200.2,7.20478641]
[1770212974164,7.43597105,2201.2,2200.2,7.20478641]
[1770212974465,4.19180026,2201.1,2200.2,0.00473616]
[1770212974665,4.19180026,2201.0,2200.2,0.00473616]